[Event "Open Cappelle-la-Grande"]
[Date "2025.02.16"]
[White "Gatineau, Yovann"]
[Black "Iniyan, Pa"]
[WhiteElo "2358"]
[BlackElo "2523"]
[Round "3.3.3"]
[Result "0-1"]
[TimeControl "40/5400+30:1800+30"]

1. Nf3 {[%clk 1:25:23]} 1... d5 {[%clk 1:26:04]} 2. g3 {[%clk 1:25:36]} 2... Nf6
{[%clk 1:23:26]} 3. Bg2 {[%clk 1:25:49]} 3... e6 {[%clk 1:23:49]} 4. O-O {[%clk
1:23:23]} 4... Be7 {[%clk 1:24:11]} 5. c4 {[%clk 1:21:03]} 5... O-O {[%clk
1:24:31]} 6. d3 {[%clk 1:19:55]} 6... c5 {[%clk 1:24:34]} 7. cxd5 {[%clk
1:16:39]} 7... exd5 {[%clk 1:24:50]} 8. d4 {[%clk 1:15:52]} 8... Nc6 {[%clk
1:12:03]} 9. dxc5 {[%clk 1:05:19]} 9... Bxc5 {[%clk 1:11:59]} 10. a3 {[%clk
1:05:31]} 10... a6 {[%clk 1:08:03]} 11. b4 {[%clk 1:03:43]} 11... Ba7 {[%clk
1:08:26]} 12. Bb2 {[%clk 1:03:37]} 12... Re8 {[%clk 1:08:48]} 13. Nbd2 {[%clk
0:59:26]} 13... Qe7 {[%clk 1:01:11]} 14. e3 {[%clk 0:56:06]} 14... Bg4 {[%clk
0:49:02]} 15. h3 {[%clk 0:45:25]} 15... Bh5 {[%clk 0:47:57]} 16. Nb3 {[%clk
0:44:54]} 16... Rad8 {[%clk 0:47:22]} 17. Nbd4 {[%clk 0:43:45]} 17... Nxd4
{[%clk 0:41:02]} 18. Bxd4 {[%clk 0:44:00]} 18... Bb8 {[%clk 0:41:26]} 19. Rc1
{[%clk 0:42:57]} 19... Qe6 {[%clk 0:38:50]} 20. Qe2 {[%clk 0:36:03]} 20... Ne4
{[%clk 0:38:28]} 21. Rfd1 {[%clk 0:33:49]} 21... f6 {[%clk 0:32:08]} 22. Rc2
{[%clk 0:27:46]} 22... g5 {[%clk 0:28:13]} 23. Rdc1 {[%clk 0:25:49]} 23... Bg6
{[%clk 0:26:20]} 24. Rb2 {[%clk 0:20:12]} 24... Bf5 {[%clk 0:15:41]} 25. Qf1
{[%clk 0:17:22]} 25... h5 {[%clk 0:15:45]} 26. b5 {[%clk 0:16:26]} 26... a5
{[%clk 0:11:55]} 27. b6 {[%clk 0:12:59]} 27... Bd6 {[%clk 0:07:55]} 28. Rb5
{[%clk 0:11:13]} 28... Rc8 {[%clk 0:07:21]} 29. Rxa5 {[%clk 0:08:26]} 29... Rxc1
{[%clk 0:06:46]} 30. Qxc1 {[%clk 0:08:51]} 30... Bxh3 {[%clk 0:06:24]} 31. Qd1
{[%clk 0:06:18]} 31... h4 {[%clk 0:04:59]} 32. Nxh4 {[%clk 0:00:40]} 32... gxh4
{[%clk 0:04:21]} 33. Bxh3 {[%clk 0:00:45]} 33... Qxh3 {[%clk 0:04:19]} 34. Qh5
{[%clk 0:01:11]} 34... Rc8 {[%clk 0:04:03]} 35. Qxd5+ {[%clk 0:00:53]} 35... Kf8
{[%clk 0:03:39]} 36. Bc5 {[%clk 0:00:41]} 36... Bxc5 {[%clk 0:03:03]} 37. Qxe4
{[%clk 0:00:33]} 37... Bxa3 {[%clk 0:03:07]} 38. Rxa3 {[%clk 0:00:42]} 38...
Rc1# {[%clk 0:03:31]} 0-1

[Variant "Standard"]
[Site "Europe Echecs"]

[Event "Open Cappelle-la-Grande"]
[Date "2025.02.16"]
[White "Raja Rithvik R"]
[Black "Travadon, Loic"]
[WhiteElo "2522"]
[BlackElo "2401"]
[Round "3.3.4"]
[Result "0-1"]
[TimeControl "40/5400+30:1800+30"]

1. d4 {[%clk 1:30:47]} 1... Nf6 {[%clk 1:30:45]} 2. c4 {[%clk 1:31:09]} 2... e6
{[%clk 1:30:37]} 3. Nc3 {[%clk 1:31:21]} 3... d5 {[%clk 1:29:03]} 4. cxd5 {[%clk
1:31:42]} 4... exd5 {[%clk 1:29:25]} 5. Bg5 {[%clk 1:32:00]} 5... c6 {[%clk
1:29:43]} 6. e3 {[%clk 1:32:20]} 6... Bd6 {[%clk 1:29:55]} 7. Bd3 {[%clk
1:30:31]} 7... h6 {[%clk 1:30:09]} 8. Bh4 {[%clk 1:30:47]} 8... O-O {[%clk
1:30:12]} 9. Qc2 {[%clk 1:26:38]} 9... Re8 {[%clk 1:29:30]} 10. Nge2 {[%clk
1:22:12]} 10... a5 {[%clk 1:28:10]} 11. h3 {[%clk 1:21:24]} 11... Na6 {[%clk
1:28:31]} 12. a3 {[%clk 1:21:43]} 12... Nc7 {[%clk 1:28:50]} 13. O-O {[%clk
1:20:39]} 13... Ne6 {[%clk 1:28:58]} 14. Rab1 {[%clk 1:09:03]} 14... Bd7 {[%clk
1:21:05]} 15. b4 {[%clk 0:59:58]} 15... axb4 {[%clk 1:20:59]} 16. axb4 {[%clk
1:00:25]} 16... b5 {[%clk 1:21:02]} 17. f3 {[%clk 0:55:48]} 17... Ng5 {[%clk
1:16:22]} 18. e4 {[%clk 0:45:08]} 18... Nfxe4 {[%clk 1:14:25]} 19. fxe4 {[%clk
0:43:20]} 19... Nxh3+ {[%clk 1:14:49]} 20. gxh3 {[%clk 0:43:47]} 20... Qxh4
{[%clk 1:15:11]} 21. e5 {[%clk 0:43:05]} 21... Bxe5 {[%clk 1:12:06]} 22. dxe5
{[%clk 0:38:32]} 22... Rxe5 {[%clk 1:10:34]} 23. Rf3 {[%clk 0:21:29]} 23... Rg5+
{[%clk 1:07:03]} 24. Kf1 {[%clk 0:18:06]} 24... Bxh3+ {[%clk 1:07:00]} 25. Rxh3
{[%clk 0:18:32]} 25... Qxh3+ {[%clk 1:07:25]} 26. Ke1 {[%clk 0:18:24]} 26... Qe3
{[%clk 1:04:13]} 27. Kd1 {[%clk 0:18:14]} 27... d4 {[%clk 1:04:37]} 28. Ne4
{[%clk 0:16:34]} 28... Ra2 {[%clk 1:02:33]} 29. Qxa2 {[%clk 0:03:45]} 29...
Qxd3+ {[%clk 0:47:11]} 30. Nd2 {[%clk 0:04:11]} 30... Rg2 {[%clk 0:47:20]} 31.
Qa8+ {[%clk 0:03:23]} 31... Kh7 {[%clk 0:47:48]} 32. Qe8 {[%clk 0:03:49]} 32...
Rh2 {[%clk 0:47:43]} 33. Ke1 {[%clk 0:03:28]} 33... Rh1+ {[%clk 0:47:30]} 34.
Kf2 {[%clk 0:03:54]} 34... Qf5+ {[%clk 0:47:55]} 35. Kg2 {[%clk 0:01:39]} 35...
Qh3+ {[%clk 0:48:20]} 36. Kf2 {[%clk 0:02:08]} 36... Rh2+ {[%clk 0:48:44]} 37.
Ke1 {[%clk 0:02:30]} 37... d3 {[%clk 0:49:05]} 38. Qxf7 {[%clk 0:00:39]} 38...
Rxe2+ {[%clk 0:40:10]} 39. Kd1 {[%clk 0:01:08]} 39... Qg4 {[%clk 0:40:30]} 40.
Kc1 {[%clk 0:00:37]} 40... Re1+ {[%clk 0:40:30]} 41. Kb2 {[%clk 0:01:02]} 41...
Qxb4+ {[%clk 0:40:49]} 0-1

[Variant "Standard"]
[Site "Europe Echecs"]

[Event "Open Cappelle-la-Grande"]
[Date "2025.02.16"]
[White "Yordanov, Lachezar"]
[Black "Boyer, Mahel"]
[WhiteElo "2352"]
[BlackElo "2509"]
[Round "3.3.5"]
[Result "1-0"]
[TimeControl "40/5400+30:1800+30"]

1. d4 {[%clk 1:29:04]} 1... Nf6 {[%clk 1:30:28]} 2. c4 {[%clk 1:29:26]} 2... g6
{[%clk 1:30:53]} 3. Nc3 {[%clk 1:29:49]} 3... Bg7 {[%clk 1:31:20]} 4. e4 {[%clk
1:30:11]} 4... d6 {[%clk 1:31:46]} 5. Be2 {[%clk 1:30:07]} 5... O-O {[%clk
1:31:23]} 6. Nf3 {[%clk 1:30:31]} 6... e5 {[%clk 1:29:21]} 7. O-O {[%clk
1:30:29]} 7... Na6 {[%clk 1:29:40]} 8. Be3 {[%clk 1:30:34]} 8... Qe7 {[%clk
1:29:54]} 9. Qc2 {[%clk 1:27:39]} 9... exd4 {[%clk 1:27:15]} 10. Nxd4 {[%clk
1:25:36]} 10... c6 {[%clk 1:27:40]} 11. Rfe1 {[%clk 1:12:07]} 11... Re8 {[%clk
1:02:20]} 12. f3 {[%clk 1:12:05]} 12... d5 {[%clk 1:02:14]} 13. cxd5 {[%clk
1:11:27]} 13... Nb4 {[%clk 0:59:53]} 14. Qd2 {[%clk 0:53:41]} 14... Nbxd5 {[%clk
0:47:58]} 15. Nxd5 {[%clk 0:51:29]} 15... cxd5 {[%clk 0:45:04]} 16. Bb5 {[%clk
0:46:26]} 16... Bd7 {[%clk 0:45:21]} 17. e5 {[%clk 0:32:55]} 17... Qxe5 {[%clk
0:44:06]} 18. Bf4 {[%clk 0:31:57]} 18... Qh5 {[%clk 0:44:25]} 19. g4 {[%clk
0:23:55]} 19... Rxe1+ {[%clk 0:39:34]} 20. Rxe1 {[%clk 0:23:48]} 20... Bxg4
{[%clk 0:40:00]} 21. fxg4 {[%clk 0:24:07]} 21... Qxg4+ {[%clk 0:40:13]} 22. Bg3
{[%clk 0:23:59]} 22... Nh5 {[%clk 0:28:25]} 23. Ne2 {[%clk 0:21:56]} 23... a6
{[%clk 0:28:06]} 24. Bd3 {[%clk 0:22:15]} 24... Re8 {[%clk 0:28:25]} 25. Kg2
{[%clk 0:19:55]} 25... Bf6 {[%clk 0:27:29]} 26. Rf1 {[%clk 0:15:35]} 26... Bg5
{[%clk 0:26:55]} 27. Qc2 {[%clk 0:15:41]} 27... Re3 {[%clk 0:25:41]} 28. Rf2
{[%clk 0:14:52]} 28... Bh4 {[%clk 0:14:32]} 29. Qc7 {[%clk 0:12:03]} 29... Nf6
{[%clk 0:14:45]} 30. Rf4 {[%clk 0:08:12]} 30... Rxe2+ {[%clk 0:13:48]} 31. Kf1
{[%clk 0:08:24]} 31... Bxg3 {[%clk 0:05:05]} 32. hxg3 {[%clk 0:07:54]} 32... Qh5
{[%clk 0:01:18]} 33. Rxf6 {[%clk 0:04:20]} 33... Qh3+ {[%clk 0:00:31]} 34. Kxe2
{[%clk 0:04:43]} 34... Qg4+ {[%clk 0:00:32]} 35. Ke1 {[%clk 0:03:25]} 35...
Qxg3+ {[%clk 0:00:31]} 36. Qxg3 {[%clk 0:03:50]} 1-0

[Variant "Standard"]
[Site "Europe Echecs"]

[Event "Open Cappelle-la-Grande"]
[Date "2025.02.16"]
[White "Suleymenov, Alisher"]
[Black "Degraeve, Remy"]
[WhiteElo "2481"]
[BlackElo "2371"]
[Round "3.3.6"]
[Result "0-1"]
[TimeControl "40/5400+30:1800+30"]

1. d4 {[%clk 1:30:58]} 1... Nf6 {[%clk 1:30:52]} 2. c4 {[%clk 1:31:22]} 2... e6
{[%clk 1:31:19]} 3. Nf3 {[%clk 1:31:46]} 3... d5 {[%clk 1:31:39]} 4. g3 {[%clk
1:32:08]} 4... Be7 {[%clk 1:32:02]} 5. Bg2 {[%clk 1:31:58]} 5... O-O {[%clk
1:32:24]} 6. O-O {[%clk 1:31:23]} 6... dxc4 {[%clk 1:32:46]} 7. Qc2 {[%clk
1:28:35]} 7... b5 {[%clk 1:32:41]} 8. a4 {[%clk 1:28:20]} 8... b4 {[%clk
1:33:03]} 9. Ne5 {[%clk 1:27:13]} 9... Qxd4 {[%clk 1:32:45]} 10. Bxa8 {[%clk
1:02:40]} 10... Qxe5 {[%clk 1:32:36]} 11. Bf3 {[%clk 1:03:05]} 11... Ba6 {[%clk
1:23:21]} 12. Bf4 {[%clk 1:02:16]} 12... Qa5 {[%clk 1:21:39]} 13. Nd2 {[%clk
0:57:34]} 13... b3 {[%clk 1:12:55]} 14. Qc1 {[%clk 0:57:39]} 14... Qb4 {[%clk
1:13:07]} 15. Bxc7 {[%clk 0:44:57]} 15... Nd5 {[%clk 1:08:33]} 16. Bxb8 {[%clk
0:39:57]} 16... Rxb8 {[%clk 1:07:40]} 17. Ne4 {[%clk 0:39:12]} 17... h6 {[%clk
0:42:16]} 18. Rd1 {[%clk 0:34:08]} 18... f5 {[%clk 0:38:50]} 19. Nc3 {[%clk
0:30:23]} 19... Nxc3 {[%clk 0:38:07]} 20. bxc3 {[%clk 0:29:36]} 20... Qc5 {[%clk
0:36:26]} 21. Qf4 {[%clk 0:25:28]} 21... Rc8 {[%clk 0:21:48]} 22. Rab1 {[%clk
0:21:50]} 22... Rc7 {[%clk 0:17:58]} 23. h4 {[%clk 0:09:31]} 23... Bf6 {[%clk
0:16:25]} 24. Qd2 {[%clk 0:05:18]} 24... Bc8 {[%clk 0:15:22]} 25. Kg2 {[%clk
0:03:09]} 25... Rd7 {[%clk 0:13:02]} 26. Qe1 {[%clk 0:03:01]} 26... Qe5 {[%clk
0:07:45]} 27. Rbc1 {[%clk 0:01:52]} 27... Kh7 {[%clk 0:04:34]} 28. e3 {[%clk
0:02:05]} 28... Qa5 {[%clk 0:03:59]} 29. Rxd7 {[%clk 0:00:43]} 29... Bxd7 {[%clk
0:04:26]} 30. Qd2 {[%clk 0:00:58]} 30... Qxa4 {[%clk 0:03:52]} 31. e4 {[%clk
0:00:46]} 31... Bc6 {[%clk 0:03:15]} 32. Qe2 {[%clk 0:01:07]} 32... Qb5 {[%clk
0:03:04]} 33. g4 {[%clk 0:00:44]} 33... a5 {[%clk 0:01:33]} 34. exf5 {[%clk
0:00:57]} 34... Bxf3+ {[%clk 0:01:47]} 35. Qxf3 {[%clk 0:01:03]} 35... Qd5
{[%clk 0:01:02]} 36. fxe6 {[%clk 0:00:45]} 36... Qxf3+ {[%clk 0:01:06]} 37. Kxf3
{[%clk 0:01:11]} 37... a4 {[%clk 0:01:27]} 38. Re1 {[%clk 0:00:32]} 38... b2
{[%clk 0:01:31]} 39. g5 {[%clk 0:00:32]} 39... Be7 {[%clk 0:01:48]} 0-1

[Variant "Standard"]
[Site "Europe Echecs"]

[Event "Open Cappelle-la-Grande"]
[Date "2025.02.16"]
[White "Das, Arghyadip"]
[Black "Muthaiah AL"]
[WhiteElo "2350"]
[BlackElo "2474"]
[Round "3.3.7"]
[Result "0-1"]
[TimeControl "40/5400+30:1800+30"]

1. e4 {[%clk 1:30:53]} 1... c5 {[%clk 1:29:46]} 2. Nf3 {[%clk 1:31:12]} 2... e6
{[%clk 1:29:58]} 3. Nc3 {[%clk 1:31:22]} 3... Nc6 {[%clk 1:29:46]} 4. Bb5 {[%clk
1:31:32]} 4... Nd4 {[%clk 1:28:57]} 5. O-O {[%clk 1:31:32]} 5... a6 {[%clk
1:28:07]} 6. Bd3 {[%clk 1:31:53]} 6... Nc6 {[%clk 1:25:25]} 7. b3 {[%clk
1:31:58]} 7... d6 {[%clk 1:19:24]} 8. Bb2 {[%clk 1:31:20]} 8... Nf6 {[%clk
1:19:12]} 9. Re1 {[%clk 1:30:59]} 9... e5 {[%clk 1:15:31]} 10. Nd5 {[%clk
1:29:09]} 10... Be7 {[%clk 1:14:05]} 11. Nxe7 {[%clk 1:28:57]} 11... Qxe7 {[%clk
1:13:55]} 12. c3 {[%clk 1:19:11]} 12... O-O {[%clk 1:03:16]} 13. Bf1 {[%clk
1:16:20]} 13... Bg4 {[%clk 1:02:02]} 14. h3 {[%clk 1:15:11]} 14... Bh5 {[%clk
1:00:58]} 15. g3 {[%clk 1:03:03]} 15... Rad8 {[%clk 0:53:04]} 16. Bg2 {[%clk
0:56:31]} 16... d5 {[%clk 0:40:34]} 17. exd5 {[%clk 0:55:32]} 17... Nxd5 {[%clk
0:39:42]} 18. d4 {[%clk 0:29:10]} 18... cxd4 {[%clk 0:30:23]} 19. cxd4 {[%clk
0:29:13]} 19... e4 {[%clk 0:29:52]} 20. Qd2 {[%clk 0:20:14]} 20... f5 {[%clk
0:25:15]} 21. Nh2 {[%clk 0:14:16]} 21... Bg6 {[%clk 0:21:32]} 22. f4 {[%clk
0:10:29]} 22... Qb4 {[%clk 0:11:29]} 23. Qf2 {[%clk 0:10:25]} 23... Qb6 {[%clk
0:07:31]} 24. Bf1 {[%clk 0:05:14]} 24... Bf7 {[%clk 0:04:13]} 25. Bc4 {[%clk
0:05:27]} 25... Ndb4 {[%clk 0:04:18]} 26. Bf1 {[%clk 0:02:10]} 26... Nxd4 {[%clk
0:03:24]} 27. Rad1 {[%clk 0:01:48]} 27... e3 {[%clk 0:01:45]} 28. Qxe3 {[%clk
0:01:14]} 28... Nf3+ {[%clk 0:01:57]} 29. Nxf3 {[%clk 0:01:04]} 29... Qxe3+
{[%clk 0:02:19]} 30. Rxe3 {[%clk 0:01:25]} 30... Rxd1 {[%clk 0:02:47]} 31. a3
{[%clk 0:01:10]} 31... Nc6 {[%clk 0:02:42]} 32. b4 {[%clk 0:00:37]} 32... Bc4
{[%clk 0:02:29]} 33. Re1 {[%clk 0:01:06]} 33... Rxe1 {[%clk 0:02:46]} 34. Nxe1
{[%clk 0:01:35]} 34... Bxf1 {[%clk 0:03:04]} 35. Kxf1 {[%clk 0:02:04]} 35... Re8
{[%clk 0:02:06]} 36. Kf2 {[%clk 0:01:53]} 36... Rd8 {[%clk 0:01:42]} 37. Ke2
{[%clk 0:01:49]} 37... Kf7 {[%clk 0:01:25]} 38. Nd3 {[%clk 0:02:06]} 38... b6
{[%clk 0:01:43]} 39. Ke3 {[%clk 0:01:34]} 39... g6 {[%clk 0:01:42]} 40. a4
{[%clk 0:01:08]} 40... b5 {[%clk 0:00:49]} 41. a5 {[%clk 0:28:05]} 41... Rxd3+
{[%clk 0:29:10]} 0-1

[Variant "Standard"]
[Site "Europe Echecs"]

[Event "Open Cappelle-la-Grande"]
[Date "2025.02.16"]
[White "Eugene, Floryan"]
[Black "Akhvlediani, Irakli"]
[WhiteElo "2468"]
[BlackElo "2369"]
[Round "3.3.8"]
[Result "1/2-1/2"]
[TimeControl "40/5400+30:1800+30"]

1. e4 {[%clk 1:26:00]} 1... c5 {[%clk 1:30:58]} 2. Nf3 {[%clk 1:26:20]} 2... d6
{[%clk 1:31:24]} 3. Bb5+ {[%clk 1:26:07]} 3... Nd7 {[%clk 1:31:50]} 4. O-O
{[%clk 1:26:30]} 4... a6 {[%clk 1:32:12]} 5. Bxd7+ {[%clk 1:26:49]} 5... Bxd7
{[%clk 1:32:03]} 6. c3 {[%clk 1:27:10]} 6... Nf6 {[%clk 1:31:40]} 7. Re1 {[%clk
1:27:35]} 7... Bg4 {[%clk 1:25:20]} 8. h3 {[%clk 1:24:52]} 8... Bh5 {[%clk
1:25:33]} 9. d4 {[%clk 1:20:00]} 9... cxd4 {[%clk 1:23:03]} 10. cxd4 {[%clk
1:19:41]} 10... e6 {[%clk 1:23:30]} 11. Qb3 {[%clk 1:08:20]} 11... Rb8 {[%clk
1:09:36]} 12. d5 {[%clk 0:57:24]} 12... e5 {[%clk 1:09:10]} 13. Be3 {[%clk
0:56:05]} 13... Bxf3 {[%clk 1:08:25]} 14. Bb6 {[%clk 0:55:57]} 14... Qd7 {[%clk
1:06:49]} 15. Qxf3 {[%clk 0:56:09]} 15... Be7 {[%clk 1:07:04]} 16. Nd2 {[%clk
0:51:14]} 16... O-O {[%clk 1:06:44]} 17. Nc4 {[%clk 0:44:11]} 17... Rfc8 {[%clk
1:02:26]} 18. Qb3 {[%clk 0:36:14]} 18... Bd8 {[%clk 0:48:26]} 19. Rac1 {[%clk
0:36:08]} 19... Bxb6 {[%clk 0:35:36]} 20. Nxb6 {[%clk 0:26:03]} 20... Rxc1
{[%clk 0:36:00]} 21. Rxc1 {[%clk 0:26:27]} 21... Qd8 {[%clk 0:36:18]} 22. Rc4
{[%clk 0:26:50]} 22... Nd7 {[%clk 0:30:33]} 23. Nxd7 {[%clk 0:27:14]} 23... Qxd7
{[%clk 0:30:59]} 24. Qc2 {[%clk 0:27:22]} 24... g6 {[%clk 0:29:38]} 25. a4
{[%clk 0:27:45]} 25... Kg7 {[%clk 0:26:27]} 26. Rc7 {[%clk 0:27:41]} 26... Qd8
{[%clk 0:26:19]} 27. g3 {[%clk 0:27:26]} 27... a5 {[%clk 0:12:17]} 28. Qc3
{[%clk 0:24:29]} 28... h5 {[%clk 0:10:44]} 29. h4 {[%clk 0:18:54]} 29... b5
{[%clk 0:08:14]} 30. Qxa5 {[%clk 0:09:18]} 30... Ra8 {[%clk 0:08:25]} 31. Qb6
{[%clk 0:09:17]} 31... Rc8 {[%clk 0:08:44]} 32. Rc6 {[%clk 0:08:41]} 32... Qxb6
{[%clk 0:09:10]} 33. Rxb6 {[%clk 0:09:10]} 33... bxa4 {[%clk 0:09:35]} 34. Kg2
{[%clk 0:09:23]} 34... Rc2 {[%clk 0:08:33]} 35. Kf3 {[%clk 0:09:33]} 35... Kf8
{[%clk 0:08:28]} 36. Ke3 {[%clk 0:08:49]} 36... Ke7 {[%clk 0:08:46]} 37. Rb4
{[%clk 0:09:10]} 37... a3 {[%clk 0:08:44]} 38. Rb7+ {[%clk 0:09:31]} 38... Ke8
{[%clk 0:09:04]} 39. bxa3 {[%clk 0:09:12]} 39... Rc3+ {[%clk 0:09:30]} 40. Ke2
{[%clk 0:09:39]} 40... Rxa3 {[%clk 0:09:56]} 1/2-1/2

[Variant "Standard"]
[Site "Europe Echecs"]

[Event "Open Cappelle-la-Grande"]
[Date "2025.02.16"]
[White "Mueer, Sebastian"]
[Black "Flom, Gabriel"]
[WhiteElo "2219"]
[BlackElo "2455"]
[Round "3.3.9"]
[Result "1/2-1/2"]
[TimeControl "40/5400+30:1800+30"]

1. d4 {[%clk 1:25:15]} 1... Nf6 {[%clk 1:30:18]} 2. c4 {[%clk 1:24:56]} 2... e6
{[%clk 1:30:19]} 3. Nf3 {[%clk 1:25:16]} 3... d5 {[%clk 1:26:55]} 4. Nc3 {[%clk
1:25:03]} 4... Bb4 {[%clk 1:26:44]} 5. Qa4+ {[%clk 1:25:21]} 5... Nc6 {[%clk
1:27:10]} 6. e3 {[%clk 1:25:44]} 6... O-O {[%clk 1:26:06]} 7. Qc2 {[%clk
1:25:30]} 7... Re8 {[%clk 1:25:36]} 8. Bd2 {[%clk 1:22:14]} 8... a6 {[%clk
1:24:20]} 9. Be2 {[%clk 1:20:44]} 9... b6 {[%clk 1:19:52]} 10. a3 {[%clk
1:16:04]} 10... Bf8 {[%clk 1:16:54]} 11. O-O {[%clk 1:10:23]} 11... Bb7 {[%clk
1:17:16]} 12. b4 {[%clk 1:04:21]} 12... h6 {[%clk 1:03:07]} 13. Rfd1 {[%clk
0:54:31]} 13... dxc4 {[%clk 0:48:36]} 14. Bxc4 {[%clk 0:54:50]} 14... Rc8 {[%clk
0:48:33]} 15. Bc1 {[%clk 0:48:30]} 15... Nb8 {[%clk 0:41:49]} 16. e4 {[%clk
0:44:27]} 16... c5 {[%clk 0:42:06]} 17. bxc5 {[%clk 0:37:28]} 17... bxc5 {[%clk
0:42:32]} 18. d5 {[%clk 0:34:23]} 18... exd5 {[%clk 0:42:59]} 19. Rb1 {[%clk
0:28:55]} 19... Qc7 {[%clk 0:43:04]} 20. exd5 {[%clk 0:22:01]} 20... Bd6 {[%clk
0:43:14]} 21. Qb3 {[%clk 0:17:54]} 21... Ba8 {[%clk 0:40:32]} 22. h3 {[%clk
0:17:21]} 22... Rcd8 {[%clk 0:36:51]} 23. Nh4 {[%clk 0:16:39]} 23... Bh2+ {[%clk
0:36:31]} 24. Kh1 {[%clk 0:16:52]} 24... Bf4 {[%clk 0:36:37]} 25. Bb2 {[%clk
0:11:35]} 25... Qe7 {[%clk 0:30:00]} 26. Ng6 {[%clk 0:11:11]} 26... Qd6 {[%clk
0:30:05]} 27. Nxf4 {[%clk 0:10:38]} 27... Qxf4 {[%clk 0:30:34]} 28. Kg1 {[%clk
0:09:32]} 28... Qf5 {[%clk 0:29:12]} 29. d6 {[%clk 0:08:10]} 29... Qg6 {[%clk
0:29:15]} 30. Bf1 {[%clk 0:04:09]} 30... Nc6 {[%clk 0:27:17]} 31. Na4 {[%clk
0:03:51]} 31... Ne4 {[%clk 0:25:41]} 32. Qc2 {[%clk 0:02:53]} 32... Nd4 {[%clk
0:21:39]} 33. Bxd4 {[%clk 0:03:04]} 33... cxd4 {[%clk 0:22:05]} 34. Rxd4 {[%clk
0:03:15]} 34... Rxd6 {[%clk 0:22:18]} 35. Rxd6 {[%clk 0:02:54]} 35... Qxd6
{[%clk 0:22:43]} 36. Nb6 {[%clk 0:01:25]} 36... Nd2 {[%clk 0:15:03]} 37. Nc4
{[%clk 0:01:10]} 37... Nxc4 {[%clk 0:15:18]} 38. Qxc4 {[%clk 0:01:04]} 38...
Qxa3 {[%clk 0:12:56]} 39. Qxa6 {[%clk 0:01:27]} 1/2-1/2

[Variant "Standard"]
[Site "Europe Echecs"]